{"text_format":"3","workbook":"xlsx","n_sheets":5,"sheets":["Suvestinė nuo metų pradžios","1-as ktv.","2-as ktv.","3-as ktv.","4-as ktv."],"not_rendered":{"defined_names":12},"read":"whole","date_system":"1900"}

{"sheet":"Suvestinė nuo metų pradžios","index":0,"n_rows":36,"n_cols":12,"rows_kept":36,"merged":[[3,0,3,6]]}
["Įmonės pavadinimas"]
["Lankomumo sekimas, suvestinė nuo metų pradžios"]
["Data"]
[{"$f":"Įmonės_pavadinimas","v":"Įmonės pavadinimas"},{"$nulls":6},"KONFIDENCIALI INFORMACIJA"]
["Pavardė","Vardas","Atostogos","Asmeninės","Nedarbingumas","SOCIALINIO DRAUDIMO NUMERIS","Pareigos","Prižiūrėtojas:","Įdarbinimo data","Komentarai","Atostogų dienos \nper metus","Atostogų dienos \nLiko"]
["Pavardė","Vardas",{"$f":"SUM('1-as ktv.:4-as ktv.'!C6)","v":3},{"$f":"SUM('1-as ktv.:4-as ktv.'!D6)","v":0},{"$f":"SUM('1-as ktv.:4-as ktv.'!E6)","v":1},"xxx-xx-xxxx","Vadovas","Vardas",null,null,10,{"$f":"K6-C6","v":7}]
[null,null,{"$f":"SUM('1-as ktv.:4-as ktv.'!C7)","v":0},{"$f":"SUM('1-as ktv.:4-as ktv.'!D7)","v":0},{"$f":"SUM('1-as ktv.:4-as ktv.'!E7)","v":0},{"$nulls":6},{"$f":"K7-C7","v":0}]
[null,null,{"$f":"SUM('1-as ktv.:4-as ktv.'!C8)","v":0},{"$f":"SUM('1-as ktv.:4-as ktv.'!D8)","v":0},{"$f":"SUM('1-as ktv.:4-as ktv.'!E8)","v":0},{"$nulls":6},0]
[null,null,{"$f":"SUM('1-as ktv.:4-as ktv.'!C9)","v":0},{"$f":"SUM('1-as ktv.:4-as ktv.'!D9)","v":0},{"$f":"SUM('1-as ktv.:4-as ktv.'!E9)","v":0},{"$nulls":6},0]
[null,null,{"$f":"SUM('1-as ktv.:4-as ktv.'!C10)","v":0},{"$f":"SUM('1-as ktv.:4-as ktv.'!D10)","v":0},{"$f":"SUM('1-as ktv.:4-as ktv.'!E10)","v":0},{"$nulls":6},0]
[null,null,{"$f":"SUM('1-as ktv.:4-as ktv.'!C11)","v":0},{"$f":"SUM('1-as ktv.:4-as ktv.'!D11)","v":0},{"$f":"SUM('1-as ktv.:4-as ktv.'!E11)","v":0},{"$nulls":6},0]
[null,null,{"$f":"SUM('1-as ktv.:4-as ktv.'!C12)","v":0},{"$f":"SUM('1-as ktv.:4-as ktv.'!D12)","v":0},{"$f":"SUM('1-as ktv.:4-as ktv.'!E12)","v":0},{"$nulls":6},0]
[null,null,{"$f":"SUM('1-as ktv.:4-as ktv.'!C13)","v":0},{"$f":"SUM('1-as ktv.:4-as ktv.'!D13)","v":0},{"$f":"SUM('1-as ktv.:4-as ktv.'!E13)","v":0},{"$nulls":6},0]
[null,null,{"$f":"SUM('1-as ktv.:4-as ktv.'!C14)","v":0},{"$f":"SUM('1-as ktv.:4-as ktv.'!D14)","v":0},{"$f":"SUM('1-as ktv.:4-as ktv.'!E14)","v":0},{"$nulls":6},0]
[null,null,{"$f":"SUM('1-as ktv.:4-as ktv.'!C15)","v":0},{"$f":"SUM('1-as ktv.:4-as ktv.'!D15)","v":0},{"$f":"SUM('1-as ktv.:4-as ktv.'!E15)","v":0},{"$nulls":6},0]
[null,null,{"$f":"SUM('1-as ktv.:4-as ktv.'!C16)","v":0},{"$f":"SUM('1-as ktv.:4-as ktv.'!D16)","v":0},{"$f":"SUM('1-as ktv.:4-as ktv.'!E16)","v":0},{"$nulls":6},0]
[null,null,{"$f":"SUM('1-as ktv.:4-as ktv.'!C17)","v":0},{"$f":"SUM('1-as ktv.:4-as ktv.'!D17)","v":0},{"$f":"SUM('1-as ktv.:4-as ktv.'!E17)","v":0},{"$nulls":6},0]
[null,null,{"$f":"SUM('1-as ktv.:4-as ktv.'!C18)","v":0},{"$f":"SUM('1-as ktv.:4-as ktv.'!D18)","v":0},{"$f":"SUM('1-as ktv.:4-as ktv.'!E18)","v":0},{"$nulls":6},0]
[null,null,{"$f":"SUM('1-as ktv.:4-as ktv.'!C19)","v":0},{"$f":"SUM('1-as ktv.:4-as ktv.'!D19)","v":0},{"$f":"SUM('1-as ktv.:4-as ktv.'!E19)","v":0},{"$nulls":6},0]
[null,null,{"$f":"SUM('1-as ktv.:4-as ktv.'!C20)","v":0},{"$f":"SUM('1-as ktv.:4-as ktv.'!D20)","v":0},{"$f":"SUM('1-as ktv.:4-as ktv.'!E20)","v":0},{"$nulls":6},0]
[null,null,{"$f":"SUM('1-as ktv.:4-as ktv.'!C21)","v":0},{"$f":"SUM('1-as ktv.:4-as ktv.'!D21)","v":0},{"$f":"SUM('1-as ktv.:4-as ktv.'!E21)","v":0},{"$nulls":6},0]
[null,null,{"$f":"SUM('1-as ktv.:4-as ktv.'!C22)","v":0},{"$f":"SUM('1-as ktv.:4-as ktv.'!D22)","v":0},{"$f":"SUM('1-as ktv.:4-as ktv.'!E22)","v":0},{"$nulls":6},0]
[null,null,{"$f":"SUM('1-as ktv.:4-as ktv.'!C23)","v":0},{"$f":"SUM('1-as ktv.:4-as ktv.'!D23)","v":0},{"$f":"SUM('1-as ktv.:4-as ktv.'!E23)","v":0},{"$nulls":6},0]
[null,null,{"$f":"SUM('1-as ktv.:4-as ktv.'!C24)","v":0},{"$f":"SUM('1-as ktv.:4-as ktv.'!D24)","v":0},{"$f":"SUM('1-as ktv.:4-as ktv.'!E24)","v":0},{"$nulls":6},0]
[null,null,{"$f":"SUM('1-as ktv.:4-as ktv.'!C25)","v":0},{"$f":"SUM('1-as ktv.:4-as ktv.'!D25)","v":0},{"$f":"SUM('1-as ktv.:4-as ktv.'!E25)","v":0},{"$nulls":6},0]
[null,null,{"$f":"SUM('1-as ktv.:4-as ktv.'!C26)","v":0},{"$f":"SUM('1-as ktv.:4-as ktv.'!D26)","v":0},{"$f":"SUM('1-as ktv.:4-as ktv.'!E26)","v":0},{"$nulls":6},0]
[null,null,{"$f":"SUM('1-as ktv.:4-as ktv.'!C27)","v":0},{"$f":"SUM('1-as ktv.:4-as ktv.'!D27)","v":0},{"$f":"SUM('1-as ktv.:4-as ktv.'!E27)","v":0},{"$nulls":6},0]
[null,null,{"$f":"SUM('1-as ktv.:4-as ktv.'!C28)","v":0},{"$f":"SUM('1-as ktv.:4-as ktv.'!D28)","v":0},{"$f":"SUM('1-as ktv.:4-as ktv.'!E28)","v":0},{"$nulls":6},0]
[null,null,{"$f":"SUM('1-as ktv.:4-as ktv.'!C29)","v":0},{"$f":"SUM('1-as ktv.:4-as ktv.'!D29)","v":0},{"$f":"SUM('1-as ktv.:4-as ktv.'!E29)","v":0},{"$nulls":6},0]
[null,null,{"$f":"SUM('1-as ktv.:4-as ktv.'!C30)","v":0},{"$f":"SUM('1-as ktv.:4-as ktv.'!D30)","v":0},{"$f":"SUM('1-as ktv.:4-as ktv.'!E30)","v":0},{"$nulls":6},0]
[null,null,{"$f":"SUM('1-as ktv.:4-as ktv.'!C31)","v":0},{"$f":"SUM('1-as ktv.:4-as ktv.'!D31)","v":0},{"$f":"SUM('1-as ktv.:4-as ktv.'!E31)","v":0},{"$nulls":6},0]
[null,null,{"$f":"SUM('1-as ktv.:4-as ktv.'!C32)","v":0},{"$f":"SUM('1-as ktv.:4-as ktv.'!D32)","v":0},{"$f":"SUM('1-as ktv.:4-as ktv.'!E32)","v":0},{"$nulls":6},0]
[null,null,{"$f":"SUM('1-as ktv.:4-as ktv.'!C33)","v":0},{"$f":"SUM('1-as ktv.:4-as ktv.'!D33)","v":0},{"$f":"SUM('1-as ktv.:4-as ktv.'!E33)","v":0},{"$nulls":6},0]
[null,null,{"$f":"SUM('1-as ktv.:4-as ktv.'!C34)","v":0},{"$f":"SUM('1-as ktv.:4-as ktv.'!D34)","v":0},{"$f":"SUM('1-as ktv.:4-as ktv.'!E34)","v":0},{"$nulls":6},0]
[null,null,{"$f":"SUM('1-as ktv.:4-as ktv.'!C35)","v":0},{"$f":"SUM('1-as ktv.:4-as ktv.'!D35)","v":0},{"$f":"SUM('1-as ktv.:4-as ktv.'!E35)","v":0},{"$nulls":6},0]
[null,null,{"$f":"SUM('1-as ktv.:4-as ktv.'!C36)","v":0},{"$f":"SUM('1-as ktv.:4-as ktv.'!D36)","v":0},{"$f":"SUM('1-as ktv.:4-as ktv.'!E36)","v":0},{"$nulls":6},0]

{"sheet":"1-as ktv.","index":1,"n_rows":36,"n_cols":95,"rows_kept":36,"merged":[[3,0,3,6]]}
[{"$f":"Įmonės_pavadinimas","v":"Įmonės pavadinimas"}]
["Lankomumo sekimas, 1-as ketvirtis"]
["Data"]
[{"$f":"Įmonės_pavadinimas","v":"Įmonės pavadinimas"},{"$nulls":6},"KONFIDENCIALI INFORMACIJA"]
["Pavardė","Vardas","Atostogos","Asmeninės","Nedarbingumas","01-01","01-02","01-03","01-04","01-05","01-06","01-07","01-08","01-09","01-10","01-11","01-12","01-13","01-14","01-15","01-16","01-17","01-18","01-19","01-20","01-21","01-22","01-23","01-24","01-25","01-26","01-27","01-28","01-29","01-30","01-31","02-01","02-02","02-03","02-04","02-05","02-06","02-07","02-08","02-09","02-10","02-11","02-12","02-13","02-14","02-15","02-16","02-17","02-18","02-19","02-20","02-21","02-22","02-23","02-24","02-25","02-26","02-27","02-28","03-01","03-02","03-03","03-04","03-05","03-06","03-07","03-08","03-09","03-10","03-11","03-12","03-13","03-14","03-15","03-16","03-17","03-18","03-19","03-20","03-21","03-22","03-23","03-24","03-25","03-26","03-27","03-28","03-29","03-30","03-31"]
[{"$f":"IF(ISBLANK('Suvestinė nuo metų pradžios'!A6),\"\",'Suvestinė nuo metų pradžios'!A6)","v":"Pavardė"},{"$f":"IF(ISBLANK('Suvestinė nuo metų pradžios'!B6),\"\",'Suvestinė nuo metų pradžios'!B6)","v":"Vardas"},{"$f":"COUNTIF($F6:$CQ6, \"At\")","v":3},{"$f":"COUNTIF($F6:$CQ6, \"As\")","v":0},{"$f":"COUNTIF($F6:$CQ6, \"N\")","v":1},"at","at","at",{"$nulls":4},"n"]
[{"$f":"IF(ISBLANK('Suvestinė nuo metų pradžios'!A7),\"\",'Suvestinė nuo metų pradžios'!A7)","v":""},{"$f":"IF(ISBLANK('Suvestinė nuo metų pradžios'!B7),\"\",'Suvestinė nuo metų pradžios'!B7)","v":""},0,0,0]
[{"$f":"IF(ISBLANK('Suvestinė nuo metų pradžios'!A8),\"\",'Suvestinė nuo metų pradžios'!A8)","v":""},{"$f":"IF(ISBLANK('Suvestinė nuo metų pradžios'!B8),\"\",'Suvestinė nuo metų pradžios'!B8)","v":""},0,0,0]
[{"$f":"IF(ISBLANK('Suvestinė nuo metų pradžios'!A9),\"\",'Suvestinė nuo metų pradžios'!A9)","v":""},{"$f":"IF(ISBLANK('Suvestinė nuo metų pradžios'!B9),\"\",'Suvestinė nuo metų pradžios'!B9)","v":""},0,0,0]
[{"$f":"IF(ISBLANK('Suvestinė nuo metų pradžios'!A10),\"\",'Suvestinė nuo metų pradžios'!A10)","v":""},{"$f":"IF(ISBLANK('Suvestinė nuo metų pradžios'!B10),\"\",'Suvestinė nuo metų pradžios'!B10)","v":""},0,0,0]
[{"$f":"IF(ISBLANK('Suvestinė nuo metų pradžios'!A11),\"\",'Suvestinė nuo metų pradžios'!A11)","v":""},{"$f":"IF(ISBLANK('Suvestinė nuo metų pradžios'!B11),\"\",'Suvestinė nuo metų pradžios'!B11)","v":""},0,0,0]
[{"$f":"IF(ISBLANK('Suvestinė nuo metų pradžios'!A12),\"\",'Suvestinė nuo metų pradžios'!A12)","v":""},{"$f":"IF(ISBLANK('Suvestinė nuo metų pradžios'!B12),\"\",'Suvestinė nuo metų pradžios'!B12)","v":""},0,0,0]
[{"$f":"IF(ISBLANK('Suvestinė nuo metų pradžios'!A13),\"\",'Suvestinė nuo metų pradžios'!A13)","v":""},{"$f":"IF(ISBLANK('Suvestinė nuo metų pradžios'!B13),\"\",'Suvestinė nuo metų pradžios'!B13)","v":""},0,0,0]
[{"$f":"IF(ISBLANK('Suvestinė nuo metų pradžios'!A14),\"\",'Suvestinė nuo metų pradžios'!A14)","v":""},{"$f":"IF(ISBLANK('Suvestinė nuo metų pradžios'!B14),\"\",'Suvestinė nuo metų pradžios'!B14)","v":""},0,0,0]
[{"$f":"IF(ISBLANK('Suvestinė nuo metų pradžios'!A15),\"\",'Suvestinė nuo metų pradžios'!A15)","v":""},{"$f":"IF(ISBLANK('Suvestinė nuo metų pradžios'!B15),\"\",'Suvestinė nuo metų pradžios'!B15)","v":""},0,0,0]
[{"$f":"IF(ISBLANK('Suvestinė nuo metų pradžios'!A16),\"\",'Suvestinė nuo metų pradžios'!A16)","v":""},{"$f":"IF(ISBLANK('Suvestinė nuo metų pradžios'!B16),\"\",'Suvestinė nuo metų pradžios'!B16)","v":""},0,0,0]
[{"$f":"IF(ISBLANK('Suvestinė nuo metų pradžios'!A17),\"\",'Suvestinė nuo metų pradžios'!A17)","v":""},{"$f":"IF(ISBLANK('Suvestinė nuo metų pradžios'!B17),\"\",'Suvestinė nuo metų pradžios'!B17)","v":""},0,0,0]
[{"$f":"IF(ISBLANK('Suvestinė nuo metų pradžios'!A18),\"\",'Suvestinė nuo metų pradžios'!A18)","v":""},{"$f":"IF(ISBLANK('Suvestinė nuo metų pradžios'!B18),\"\",'Suvestinė nuo metų pradžios'!B18)","v":""},0,0,0]
[{"$f":"IF(ISBLANK('Suvestinė nuo metų pradžios'!A19),\"\",'Suvestinė nuo metų pradžios'!A19)","v":""},{"$f":"IF(ISBLANK('Suvestinė nuo metų pradžios'!B19),\"\",'Suvestinė nuo metų pradžios'!B19)","v":""},0,0,0]
[{"$f":"IF(ISBLANK('Suvestinė nuo metų pradžios'!A20),\"\",'Suvestinė nuo metų pradžios'!A20)","v":""},{"$f":"IF(ISBLANK('Suvestinė nuo metų pradžios'!B20),\"\",'Suvestinė nuo metų pradžios'!B20)","v":""},0,0,0]
[{"$f":"IF(ISBLANK('Suvestinė nuo metų pradžios'!A21),\"\",'Suvestinė nuo metų pradžios'!A21)","v":""},{"$f":"IF(ISBLANK('Suvestinė nuo metų pradžios'!B21),\"\",'Suvestinė nuo metų pradžios'!B21)","v":""},0,0,0]
[{"$f":"IF(ISBLANK('Suvestinė nuo metų pradžios'!A22),\"\",'Suvestinė nuo metų pradžios'!A22)","v":""},{"$f":"IF(ISBLANK('Suvestinė nuo metų pradžios'!B22),\"\",'Suvestinė nuo metų pradžios'!B22)","v":""},0,0,0]
[{"$f":"IF(ISBLANK('Suvestinė nuo metų pradžios'!A23),\"\",'Suvestinė nuo metų pradžios'!A23)","v":""},{"$f":"IF(ISBLANK('Suvestinė nuo metų pradžios'!B23),\"\",'Suvestinė nuo metų pradžios'!B23)","v":""},0,0,0]
[{"$f":"IF(ISBLANK('Suvestinė nuo metų pradžios'!A24),\"\",'Suvestinė nuo metų pradžios'!A24)","v":""},{"$f":"IF(ISBLANK('Suvestinė nuo metų pradžios'!B24),\"\",'Suvestinė nuo metų pradžios'!B24)","v":""},0,0,0]
[{"$f":"IF(ISBLANK('Suvestinė nuo metų pradžios'!A25),\"\",'Suvestinė nuo metų pradžios'!A25)","v":""},{"$f":"IF(ISBLANK('Suvestinė nuo metų pradžios'!B25),\"\",'Suvestinė nuo metų pradžios'!B25)","v":""},0,0,0]
[{"$f":"IF(ISBLANK('Suvestinė nuo metų pradžios'!A26),\"\",'Suvestinė nuo metų pradžios'!A26)","v":""},{"$f":"IF(ISBLANK('Suvestinė nuo metų pradžios'!B26),\"\",'Suvestinė nuo metų pradžios'!B26)","v":""},0,0,0]
[{"$f":"IF(ISBLANK('Suvestinė nuo metų pradžios'!A27),\"\",'Suvestinė nuo metų pradžios'!A27)","v":""},{"$f":"IF(ISBLANK('Suvestinė nuo metų pradžios'!B27),\"\",'Suvestinė nuo metų pradžios'!B27)","v":""},0,0,0]
[{"$f":"IF(ISBLANK('Suvestinė nuo metų pradžios'!A28),\"\",'Suvestinė nuo metų pradžios'!A28)","v":""},{"$f":"IF(ISBLANK('Suvestinė nuo metų pradžios'!B28),\"\",'Suvestinė nuo metų pradžios'!B28)","v":""},0,0,0]
[{"$f":"IF(ISBLANK('Suvestinė nuo metų pradžios'!A29),\"\",'Suvestinė nuo metų pradžios'!A29)","v":""},{"$f":"IF(ISBLANK('Suvestinė nuo metų pradžios'!B29),\"\",'Suvestinė nuo metų pradžios'!B29)","v":""},0,0,0]
[{"$f":"IF(ISBLANK('Suvestinė nuo metų pradžios'!A30),\"\",'Suvestinė nuo metų pradžios'!A30)","v":""},{"$f":"IF(ISBLANK('Suvestinė nuo metų pradžios'!B30),\"\",'Suvestinė nuo metų pradžios'!B30)","v":""},0,0,0]
[{"$f":"IF(ISBLANK('Suvestinė nuo metų pradžios'!A31),\"\",'Suvestinė nuo metų pradžios'!A31)","v":""},{"$f":"IF(ISBLANK('Suvestinė nuo metų pradžios'!B31),\"\",'Suvestinė nuo metų pradžios'!B31)","v":""},0,0,0]
[{"$f":"IF(ISBLANK('Suvestinė nuo metų pradžios'!A32),\"\",'Suvestinė nuo metų pradžios'!A32)","v":""},{"$f":"IF(ISBLANK('Suvestinė nuo metų pradžios'!B32),\"\",'Suvestinė nuo metų pradžios'!B32)","v":""},0,0,0]
[{"$f":"IF(ISBLANK('Suvestinė nuo metų pradžios'!A33),\"\",'Suvestinė nuo metų pradžios'!A33)","v":""},{"$f":"IF(ISBLANK('Suvestinė nuo metų pradžios'!B33),\"\",'Suvestinė nuo metų pradžios'!B33)","v":""},0,0,0]
[{"$f":"IF(ISBLANK('Suvestinė nuo metų pradžios'!A34),\"\",'Suvestinė nuo metų pradžios'!A34)","v":""},{"$f":"IF(ISBLANK('Suvestinė nuo metų pradžios'!B34),\"\",'Suvestinė nuo metų pradžios'!B34)","v":""},0,0,0]
[{"$f":"IF(ISBLANK('Suvestinė nuo metų pradžios'!A35),\"\",'Suvestinė nuo metų pradžios'!A35)","v":""},{"$f":"IF(ISBLANK('Suvestinė nuo metų pradžios'!B35),\"\",'Suvestinė nuo metų pradžios'!B35)","v":""},0,0,0]
[{"$f":"IF(ISBLANK('Suvestinė nuo metų pradžios'!A36),\"\",'Suvestinė nuo metų pradžios'!A36)","v":""},{"$f":"IF(ISBLANK('Suvestinė nuo metų pradžios'!B36),\"\",'Suvestinė nuo metų pradžios'!B36)","v":""},0,0,0]

{"sheet":"2-as ktv.","index":2,"n_rows":36,"n_cols":96,"rows_kept":36,"merged":[[3,0,3,6]]}
[{"$f":"Įmonės_pavadinimas","v":"Įmonės pavadinimas"}]
["Lankomumo sekimas, 2-as ketvirtis"]
["Data"]
[{"$f":"Įmonės_pavadinimas","v":"Įmonės pavadinimas"},{"$nulls":6},"KONFIDENCIALI INFORMACIJA"]
["Pavardė","Vardas","Atostogos","Asmeninės","Nedarbingumas","04-01","04-02","04-03","04-04","04-05","04-06","04-07","04-08","04-09","04-10","04-11","04-12","04-13","04-14","04-15","04-16","04-17","04-18","04-19","04-20","04-21","04-22","04-23","04-24","04-25","04-26","04-27","04-28","04-29","04-30","05-01","05-02","05-03","05-04","05-05","05-06","05-07","05-08","05-09","05-10","05-11","05-12","05-13","05-14","05-15","05-16","05-17","05-18","05-19","05-20","05-21","05-22","05-23","05-24","05-25","05-26","05-27","05-28","05-29","05-30","05-31","06-01","06-02","06-03","06-04","06-05","06-06","06-07","06-08","06-09","06-10","06-11","06-12","06-13","06-14","06-15","06-16","06-17","06-18","06-19","06-20","06-21","06-22","06-23","06-24","06-25","06-26","06-27","06-28","06-29","06-30"]
[{"$f":"IF(ISBLANK('Suvestinė nuo metų pradžios'!A6),\"\",'Suvestinė nuo metų pradžios'!A6)","v":"Pavardė"},{"$f":"IF(ISBLANK('Suvestinė nuo metų pradžios'!B6),\"\",'Suvestinė nuo metų pradžios'!B6)","v":"Vardas"},{"$f":"COUNTIF($F6:$CR6, \"At\")","v":0},{"$f":"COUNTIF($F6:$CR6, \"As\")","v":0},{"$f":"COUNTIF($F6:$CR6, \"N\")","v":0}]
[{"$f":"IF(ISBLANK('Suvestinė nuo metų pradžios'!A7),\"\",'Suvestinė nuo metų pradžios'!A7)","v":""},{"$f":"IF(ISBLANK('Suvestinė nuo metų pradžios'!B7),\"\",'Suvestinė nuo metų pradžios'!B7)","v":""},0,0,0]
[{"$f":"IF(ISBLANK('Suvestinė nuo metų pradžios'!A8),\"\",'Suvestinė nuo metų pradžios'!A8)","v":""},{"$f":"IF(ISBLANK('Suvestinė nuo metų pradžios'!B8),\"\",'Suvestinė nuo metų pradžios'!B8)","v":""},0,0,0]
[{"$f":"IF(ISBLANK('Suvestinė nuo metų pradžios'!A9),\"\",'Suvestinė nuo metų pradžios'!A9)","v":""},{"$f":"IF(ISBLANK('Suvestinė nuo metų pradžios'!B9),\"\",'Suvestinė nuo metų pradžios'!B9)","v":""},0,0,0]
[{"$f":"IF(ISBLANK('Suvestinė nuo metų pradžios'!A10),\"\",'Suvestinė nuo metų pradžios'!A10)","v":""},{"$f":"IF(ISBLANK('Suvestinė nuo metų pradžios'!B10),\"\",'Suvestinė nuo metų pradžios'!B10)","v":""},0,0,0]
[{"$f":"IF(ISBLANK('Suvestinė nuo metų pradžios'!A11),\"\",'Suvestinė nuo metų pradžios'!A11)","v":""},{"$f":"IF(ISBLANK('Suvestinė nuo metų pradžios'!B11),\"\",'Suvestinė nuo metų pradžios'!B11)","v":""},0,0,0]
[{"$f":"IF(ISBLANK('Suvestinė nuo metų pradžios'!A12),\"\",'Suvestinė nuo metų pradžios'!A12)","v":""},{"$f":"IF(ISBLANK('Suvestinė nuo metų pradžios'!B12),\"\",'Suvestinė nuo metų pradžios'!B12)","v":""},0,0,0]
[{"$f":"IF(ISBLANK('Suvestinė nuo metų pradžios'!A13),\"\",'Suvestinė nuo metų pradžios'!A13)","v":""},{"$f":"IF(ISBLANK('Suvestinė nuo metų pradžios'!B13),\"\",'Suvestinė nuo metų pradžios'!B13)","v":""},0,0,0]
[{"$f":"IF(ISBLANK('Suvestinė nuo metų pradžios'!A14),\"\",'Suvestinė nuo metų pradžios'!A14)","v":""},{"$f":"IF(ISBLANK('Suvestinė nuo metų pradžios'!B14),\"\",'Suvestinė nuo metų pradžios'!B14)","v":""},0,0,0]
[{"$f":"IF(ISBLANK('Suvestinė nuo metų pradžios'!A15),\"\",'Suvestinė nuo metų pradžios'!A15)","v":""},{"$f":"IF(ISBLANK('Suvestinė nuo metų pradžios'!B15),\"\",'Suvestinė nuo metų pradžios'!B15)","v":""},0,0,0]
[{"$f":"IF(ISBLANK('Suvestinė nuo metų pradžios'!A16),\"\",'Suvestinė nuo metų pradžios'!A16)","v":""},{"$f":"IF(ISBLANK('Suvestinė nuo metų pradžios'!B16),\"\",'Suvestinė nuo metų pradžios'!B16)","v":""},0,0,0]
[{"$f":"IF(ISBLANK('Suvestinė nuo metų pradžios'!A17),\"\",'Suvestinė nuo metų pradžios'!A17)","v":""},{"$f":"IF(ISBLANK('Suvestinė nuo metų pradžios'!B17),\"\",'Suvestinė nuo metų pradžios'!B17)","v":""},0,0,0]
[{"$f":"IF(ISBLANK('Suvestinė nuo metų pradžios'!A18),\"\",'Suvestinė nuo metų pradžios'!A18)","v":""},{"$f":"IF(ISBLANK('Suvestinė nuo metų pradžios'!B18),\"\",'Suvestinė nuo metų pradžios'!B18)","v":""},0,0,0]
[{"$f":"IF(ISBLANK('Suvestinė nuo metų pradžios'!A19),\"\",'Suvestinė nuo metų pradžios'!A19)","v":""},{"$f":"IF(ISBLANK('Suvestinė nuo metų pradžios'!B19),\"\",'Suvestinė nuo metų pradžios'!B19)","v":""},0,0,0]
[{"$f":"IF(ISBLANK('Suvestinė nuo metų pradžios'!A20),\"\",'Suvestinė nuo metų pradžios'!A20)","v":""},{"$f":"IF(ISBLANK('Suvestinė nuo metų pradžios'!B20),\"\",'Suvestinė nuo metų pradžios'!B20)","v":""},0,0,0]
[{"$f":"IF(ISBLANK('Suvestinė nuo metų pradžios'!A21),\"\",'Suvestinė nuo metų pradžios'!A21)","v":""},{"$f":"IF(ISBLANK('Suvestinė nuo metų pradžios'!B21),\"\",'Suvestinė nuo metų pradžios'!B21)","v":""},0,0,0]
[{"$f":"IF(ISBLANK('Suvestinė nuo metų pradžios'!A22),\"\",'Suvestinė nuo metų pradžios'!A22)","v":""},{"$f":"IF(ISBLANK('Suvestinė nuo metų pradžios'!B22),\"\",'Suvestinė nuo metų pradžios'!B22)","v":""},0,0,0]
[{"$f":"IF(ISBLANK('Suvestinė nuo metų pradžios'!A23),\"\",'Suvestinė nuo metų pradžios'!A23)","v":""},{"$f":"IF(ISBLANK('Suvestinė nuo metų pradžios'!B23),\"\",'Suvestinė nuo metų pradžios'!B23)","v":""},0,0,0]
[{"$f":"IF(ISBLANK('Suvestinė nuo metų pradžios'!A24),\"\",'Suvestinė nuo metų pradžios'!A24)","v":""},{"$f":"IF(ISBLANK('Suvestinė nuo metų pradžios'!B24),\"\",'Suvestinė nuo metų pradžios'!B24)","v":""},0,0,0]
[{"$f":"IF(ISBLANK('Suvestinė nuo metų pradžios'!A25),\"\",'Suvestinė nuo metų pradžios'!A25)","v":""},{"$f":"IF(ISBLANK('Suvestinė nuo metų pradžios'!B25),\"\",'Suvestinė nuo metų pradžios'!B25)","v":""},0,0,0]
[{"$f":"IF(ISBLANK('Suvestinė nuo metų pradžios'!A26),\"\",'Suvestinė nuo metų pradžios'!A26)","v":""},{"$f":"IF(ISBLANK('Suvestinė nuo metų pradžios'!B26),\"\",'Suvestinė nuo metų pradžios'!B26)","v":""},0,0,0]
[{"$f":"IF(ISBLANK('Suvestinė nuo metų pradžios'!A27),\"\",'Suvestinė nuo metų pradžios'!A27)","v":""},{"$f":"IF(ISBLANK('Suvestinė nuo metų pradžios'!B27),\"\",'Suvestinė nuo metų pradžios'!B27)","v":""},0,0,0]
[{"$f":"IF(ISBLANK('Suvestinė nuo metų pradžios'!A28),\"\",'Suvestinė nuo metų pradžios'!A28)","v":""},{"$f":"IF(ISBLANK('Suvestinė nuo metų pradžios'!B28),\"\",'Suvestinė nuo metų pradžios'!B28)","v":""},0,0,0]
[{"$f":"IF(ISBLANK('Suvestinė nuo metų pradžios'!A29),\"\",'Suvestinė nuo metų pradžios'!A29)","v":""},{"$f":"IF(ISBLANK('Suvestinė nuo metų pradžios'!B29),\"\",'Suvestinė nuo metų pradžios'!B29)","v":""},0,0,0]
[{"$f":"IF(ISBLANK('Suvestinė nuo metų pradžios'!A30),\"\",'Suvestinė nuo metų pradžios'!A30)","v":""},{"$f":"IF(ISBLANK('Suvestinė nuo metų pradžios'!B30),\"\",'Suvestinė nuo metų pradžios'!B30)","v":""},0,0,0]
[{"$f":"IF(ISBLANK('Suvestinė nuo metų pradžios'!A31),\"\",'Suvestinė nuo metų pradžios'!A31)","v":""},{"$f":"IF(ISBLANK('Suvestinė nuo metų pradžios'!B31),\"\",'Suvestinė nuo metų pradžios'!B31)","v":""},0,0,0]
[{"$f":"IF(ISBLANK('Suvestinė nuo metų pradžios'!A32),\"\",'Suvestinė nuo metų pradžios'!A32)","v":""},{"$f":"IF(ISBLANK('Suvestinė nuo metų pradžios'!B32),\"\",'Suvestinė nuo metų pradžios'!B32)","v":""},0,0,0]
[{"$f":"IF(ISBLANK('Suvestinė nuo metų pradžios'!A33),\"\",'Suvestinė nuo metų pradžios'!A33)","v":""},{"$f":"IF(ISBLANK('Suvestinė nuo metų pradžios'!B33),\"\",'Suvestinė nuo metų pradžios'!B33)","v":""},0,0,0]
[{"$f":"IF(ISBLANK('Suvestinė nuo metų pradžios'!A34),\"\",'Suvestinė nuo metų pradžios'!A34)","v":""},{"$f":"IF(ISBLANK('Suvestinė nuo metų pradžios'!B34),\"\",'Suvestinė nuo metų pradžios'!B34)","v":""},0,0,0]
[{"$f":"IF(ISBLANK('Suvestinė nuo metų pradžios'!A35),\"\",'Suvestinė nuo metų pradžios'!A35)","v":""},{"$f":"IF(ISBLANK('Suvestinė nuo metų pradžios'!B35),\"\",'Suvestinė nuo metų pradžios'!B35)","v":""},0,0,0]
[{"$f":"IF(ISBLANK('Suvestinė nuo metų pradžios'!A36),\"\",'Suvestinė nuo metų pradžios'!A36)","v":""},{"$f":"IF(ISBLANK('Suvestinė nuo metų pradžios'!B36),\"\",'Suvestinė nuo metų pradžios'!B36)","v":""},0,0,0]

{"sheet":"3-as ktv.","index":3,"n_rows":36,"n_cols":97,"rows_kept":36,"merged":[[3,0,3,6]]}
[{"$f":"Įmonės_pavadinimas","v":"Įmonės pavadinimas"}]
["Lankomumo sekimas, 3-as ketvirtis"]
["Data"]
[{"$f":"Įmonės_pavadinimas","v":"Įmonės pavadinimas"},{"$nulls":6},"KONFIDENCIALI INFORMACIJA"]
["Pavardė","Vardas","Atostogos","Asmeninės","Nedarbingumas","07-01","07-02","07-03","07-04","07-05","07-06","07-07","07-08","07-09","07-10","07-11","07-12","07-13","07-14","07-15","07-16","07-17","07-18","07-19","07-20","07-21","07-22","07-23","07-24","07-25","07-26","07-27","07-28","07-29","07-30","07-31","08-01","08-02","08-03","08-04","08-05","08-06","08-07","08-08","08-09","08-10","08-11","08-12","08-13","08-14","08-15","08-16","08-17","08-18","08-19","08-20","08-21","08-22","08-23","08-24","08-25","08-26","08-27","08-28","08-29","08-30","08-31","09-01","09-02","09-03","09-04","09-05","09-06","09-07","09-08","09-09","09-10","09-11","09-12","09-13","09-14","09-15","09-16","09-17","09-18","09-19","09-20","09-21","09-22","09-23","09-24","09-25","09-26","09-27","09-28","09-29","09-30"]
[{"$f":"IF(ISBLANK('Suvestinė nuo metų pradžios'!A6),\"\",'Suvestinė nuo metų pradžios'!A6)","v":"Pavardė"},{"$f":"IF(ISBLANK('Suvestinė nuo metų pradžios'!B6),\"\",'Suvestinė nuo metų pradžios'!B6)","v":"Vardas"},{"$f":"COUNTIF($F6:$CS6, \"At\")","v":0},{"$f":"COUNTIF($F6:$CS6, \"As\")","v":0},{"$f":"COUNTIF($F6:$CS6, \"N\")","v":0}]
[{"$f":"IF(ISBLANK('Suvestinė nuo metų pradžios'!A7),\"\",'Suvestinė nuo metų pradžios'!A7)","v":""},{"$f":"IF(ISBLANK('Suvestinė nuo metų pradžios'!B7),\"\",'Suvestinė nuo metų pradžios'!B7)","v":""},0,0,0]
[{"$f":"IF(ISBLANK('Suvestinė nuo metų pradžios'!A8),\"\",'Suvestinė nuo metų pradžios'!A8)","v":""},{"$f":"IF(ISBLANK('Suvestinė nuo metų pradžios'!B8),\"\",'Suvestinė nuo metų pradžios'!B8)","v":""},0,0,0]
[{"$f":"IF(ISBLANK('Suvestinė nuo metų pradžios'!A9),\"\",'Suvestinė nuo metų pradžios'!A9)","v":""},{"$f":"IF(ISBLANK('Suvestinė nuo metų pradžios'!B9),\"\",'Suvestinė nuo metų pradžios'!B9)","v":""},0,0,0]
[{"$f":"IF(ISBLANK('Suvestinė nuo metų pradžios'!A10),\"\",'Suvestinė nuo metų pradžios'!A10)","v":""},{"$f":"IF(ISBLANK('Suvestinė nuo metų pradžios'!B10),\"\",'Suvestinė nuo metų pradžios'!B10)","v":""},0,0,0]
[{"$f":"IF(ISBLANK('Suvestinė nuo metų pradžios'!A11),\"\",'Suvestinė nuo metų pradžios'!A11)","v":""},{"$f":"IF(ISBLANK('Suvestinė nuo metų pradžios'!B11),\"\",'Suvestinė nuo metų pradžios'!B11)","v":""},0,0,0]
[{"$f":"IF(ISBLANK('Suvestinė nuo metų pradžios'!A12),\"\",'Suvestinė nuo metų pradžios'!A12)","v":""},{"$f":"IF(ISBLANK('Suvestinė nuo metų pradžios'!B12),\"\",'Suvestinė nuo metų pradžios'!B12)","v":""},0,0,0]
[{"$f":"IF(ISBLANK('Suvestinė nuo metų pradžios'!A13),\"\",'Suvestinė nuo metų pradžios'!A13)","v":""},{"$f":"IF(ISBLANK('Suvestinė nuo metų pradžios'!B13),\"\",'Suvestinė nuo metų pradžios'!B13)","v":""},0,0,0]
[{"$f":"IF(ISBLANK('Suvestinė nuo metų pradžios'!A14),\"\",'Suvestinė nuo metų pradžios'!A14)","v":""},{"$f":"IF(ISBLANK('Suvestinė nuo metų pradžios'!B14),\"\",'Suvestinė nuo metų pradžios'!B14)","v":""},0,0,0]
[{"$f":"IF(ISBLANK('Suvestinė nuo metų pradžios'!A15),\"\",'Suvestinė nuo metų pradžios'!A15)","v":""},{"$f":"IF(ISBLANK('Suvestinė nuo metų pradžios'!B15),\"\",'Suvestinė nuo metų pradžios'!B15)","v":""},0,0,0]
[{"$f":"IF(ISBLANK('Suvestinė nuo metų pradžios'!A16),\"\",'Suvestinė nuo metų pradžios'!A16)","v":""},{"$f":"IF(ISBLANK('Suvestinė nuo metų pradžios'!B16),\"\",'Suvestinė nuo metų pradžios'!B16)","v":""},0,0,0]
[{"$f":"IF(ISBLANK('Suvestinė nuo metų pradžios'!A17),\"\",'Suvestinė nuo metų pradžios'!A17)","v":""},{"$f":"IF(ISBLANK('Suvestinė nuo metų pradžios'!B17),\"\",'Suvestinė nuo metų pradžios'!B17)","v":""},0,0,0]
[{"$f":"IF(ISBLANK('Suvestinė nuo metų pradžios'!A18),\"\",'Suvestinė nuo metų pradžios'!A18)","v":""},{"$f":"IF(ISBLANK('Suvestinė nuo metų pradžios'!B18),\"\",'Suvestinė nuo metų pradžios'!B18)","v":""},0,0,0]
[{"$f":"IF(ISBLANK('Suvestinė nuo metų pradžios'!A19),\"\",'Suvestinė nuo metų pradžios'!A19)","v":""},{"$f":"IF(ISBLANK('Suvestinė nuo metų pradžios'!B19),\"\",'Suvestinė nuo metų pradžios'!B19)","v":""},0,0,0]
[{"$f":"IF(ISBLANK('Suvestinė nuo metų pradžios'!A20),\"\",'Suvestinė nuo metų pradžios'!A20)","v":""},{"$f":"IF(ISBLANK('Suvestinė nuo metų pradžios'!B20),\"\",'Suvestinė nuo metų pradžios'!B20)","v":""},0,0,0]
[{"$f":"IF(ISBLANK('Suvestinė nuo metų pradžios'!A21),\"\",'Suvestinė nuo metų pradžios'!A21)","v":""},{"$f":"IF(ISBLANK('Suvestinė nuo metų pradžios'!B21),\"\",'Suvestinė nuo metų pradžios'!B21)","v":""},0,0,0]
[{"$f":"IF(ISBLANK('Suvestinė nuo metų pradžios'!A22),\"\",'Suvestinė nuo metų pradžios'!A22)","v":""},{"$f":"IF(ISBLANK('Suvestinė nuo metų pradžios'!B22),\"\",'Suvestinė nuo metų pradžios'!B22)","v":""},0,0,0]
[{"$f":"IF(ISBLANK('Suvestinė nuo metų pradžios'!A23),\"\",'Suvestinė nuo metų pradžios'!A23)","v":""},{"$f":"IF(ISBLANK('Suvestinė nuo metų pradžios'!B23),\"\",'Suvestinė nuo metų pradžios'!B23)","v":""},0,0,0]
[{"$f":"IF(ISBLANK('Suvestinė nuo metų pradžios'!A24),\"\",'Suvestinė nuo metų pradžios'!A24)","v":""},{"$f":"IF(ISBLANK('Suvestinė nuo metų pradžios'!B24),\"\",'Suvestinė nuo metų pradžios'!B24)","v":""},0,0,0]
[{"$f":"IF(ISBLANK('Suvestinė nuo metų pradžios'!A25),\"\",'Suvestinė nuo metų pradžios'!A25)","v":""},{"$f":"IF(ISBLANK('Suvestinė nuo metų pradžios'!B25),\"\",'Suvestinė nuo metų pradžios'!B25)","v":""},0,0,0]
[{"$f":"IF(ISBLANK('Suvestinė nuo metų pradžios'!A26),\"\",'Suvestinė nuo metų pradžios'!A26)","v":""},{"$f":"IF(ISBLANK('Suvestinė nuo metų pradžios'!B26),\"\",'Suvestinė nuo metų pradžios'!B26)","v":""},0,0,0]
[{"$f":"IF(ISBLANK('Suvestinė nuo metų pradžios'!A27),\"\",'Suvestinė nuo metų pradžios'!A27)","v":""},{"$f":"IF(ISBLANK('Suvestinė nuo metų pradžios'!B27),\"\",'Suvestinė nuo metų pradžios'!B27)","v":""},0,0,0]
[{"$f":"IF(ISBLANK('Suvestinė nuo metų pradžios'!A28),\"\",'Suvestinė nuo metų pradžios'!A28)","v":""},{"$f":"IF(ISBLANK('Suvestinė nuo metų pradžios'!B28),\"\",'Suvestinė nuo metų pradžios'!B28)","v":""},0,0,0]
[{"$f":"IF(ISBLANK('Suvestinė nuo metų pradžios'!A29),\"\",'Suvestinė nuo metų pradžios'!A29)","v":""},{"$f":"IF(ISBLANK('Suvestinė nuo metų pradžios'!B29),\"\",'Suvestinė nuo metų pradžios'!B29)","v":""},0,0,0]
[{"$f":"IF(ISBLANK('Suvestinė nuo metų pradžios'!A30),\"\",'Suvestinė nuo metų pradžios'!A30)","v":""},{"$f":"IF(ISBLANK('Suvestinė nuo metų pradžios'!B30),\"\",'Suvestinė nuo metų pradžios'!B30)","v":""},0,0,0]
[{"$f":"IF(ISBLANK('Suvestinė nuo metų pradžios'!A31),\"\",'Suvestinė nuo metų pradžios'!A31)","v":""},{"$f":"IF(ISBLANK('Suvestinė nuo metų pradžios'!B31),\"\",'Suvestinė nuo metų pradžios'!B31)","v":""},0,0,0]
[{"$f":"IF(ISBLANK('Suvestinė nuo metų pradžios'!A32),\"\",'Suvestinė nuo metų pradžios'!A32)","v":""},{"$f":"IF(ISBLANK('Suvestinė nuo metų pradžios'!B32),\"\",'Suvestinė nuo metų pradžios'!B32)","v":""},0,0,0]
[{"$f":"IF(ISBLANK('Suvestinė nuo metų pradžios'!A33),\"\",'Suvestinė nuo metų pradžios'!A33)","v":""},{"$f":"IF(ISBLANK('Suvestinė nuo metų pradžios'!B33),\"\",'Suvestinė nuo metų pradžios'!B33)","v":""},0,0,0]
[{"$f":"IF(ISBLANK('Suvestinė nuo metų pradžios'!A34),\"\",'Suvestinė nuo metų pradžios'!A34)","v":""},{"$f":"IF(ISBLANK('Suvestinė nuo metų pradžios'!B34),\"\",'Suvestinė nuo metų pradžios'!B34)","v":""},0,0,0]
[{"$f":"IF(ISBLANK('Suvestinė nuo metų pradžios'!A35),\"\",'Suvestinė nuo metų pradžios'!A35)","v":""},{"$f":"IF(ISBLANK('Suvestinė nuo metų pradžios'!B35),\"\",'Suvestinė nuo metų pradžios'!B35)","v":""},0,0,0]
[{"$f":"IF(ISBLANK('Suvestinė nuo metų pradžios'!A36),\"\",'Suvestinė nuo metų pradžios'!A36)","v":""},{"$f":"IF(ISBLANK('Suvestinė nuo metų pradžios'!B36),\"\",'Suvestinė nuo metų pradžios'!B36)","v":""},0,0,0]

{"sheet":"4-as ktv.","index":4,"n_rows":36,"n_cols":97,"rows_kept":36,"merged":[[3,0,3,6]]}
[{"$f":"Įmonės_pavadinimas","v":"Įmonės pavadinimas"}]
["Lankomumo sekimas, 4-as ketvirtis"]
["Data"]
[{"$f":"Įmonės_pavadinimas","v":"Įmonės pavadinimas"},{"$nulls":6},"KONFIDENCIALI INFORMACIJA"]
["Pavardė","Vardas","Atostogos","Asmeninės","Nedarbingumas","10-01","10-02","10-03","10-04","10-05","10-06","10-07","10-08","10-09","10-10","10-11","10-12","10-13","10-14","10-15","10-16","10-17","10-18","10-19","10-20","10-21","10-22","10-23","10-24","10-25","10-26","10-27","10-28","10-29","10-30","10-31","11-01","11-02","11-03","11-04","11-05","11-06","11-07","11-08","11-09","11-10","11-11","11-12","11-13","11-14","11-15","11-16","11-17","11-18","11-19","11-20","11-21","11-22","11-23","11-24","11-25","11-26","11-27","11-28","11-29","11-30","12-01","12-02","12-03","12-04","12-05","12-06","12-07","12-08","12-09","12-10","12-11","12-12","12-13","12-14","12-15","12-16","12-17","12-18","12-19","12-20","12-21","12-22","12-23","12-24","12-25","12-26","12-27","12-28","12-29","12-30","12-31"]
[{"$f":"IF(ISBLANK('Suvestinė nuo metų pradžios'!A6),\"\",'Suvestinė nuo metų pradžios'!A6)","v":"Pavardė"},{"$f":"IF(ISBLANK('Suvestinė nuo metų pradžios'!B6),\"\",'Suvestinė nuo metų pradžios'!B6)","v":"Vardas"},{"$f":"COUNTIF($F6:$CS6, \"At\")","v":0},{"$f":"COUNTIF($F6:CS6, \"As\")","v":0},{"$f":"COUNTIF($F6:CS6, \"N\")","v":0}]
[{"$f":"IF(ISBLANK('Suvestinė nuo metų pradžios'!A7),\"\",'Suvestinė nuo metų pradžios'!A7)","v":""},{"$f":"IF(ISBLANK('Suvestinė nuo metų pradžios'!B7),\"\",'Suvestinė nuo metų pradžios'!B7)","v":""},0,{"$f":"COUNTIF($F7:CS7, \"As\")","v":0},{"$f":"COUNTIF($F7:CS7, \"N\")","v":0}]
[{"$f":"IF(ISBLANK('Suvestinė nuo metų pradžios'!A8),\"\",'Suvestinė nuo metų pradžios'!A8)","v":""},{"$f":"IF(ISBLANK('Suvestinė nuo metų pradžios'!B8),\"\",'Suvestinė nuo metų pradžios'!B8)","v":""},0,{"$f":"COUNTIF($F8:CS8, \"As\")","v":0},{"$f":"COUNTIF($F8:CS8, \"N\")","v":0}]
[{"$f":"IF(ISBLANK('Suvestinė nuo metų pradžios'!A9),\"\",'Suvestinė nuo metų pradžios'!A9)","v":""},{"$f":"IF(ISBLANK('Suvestinė nuo metų pradžios'!B9),\"\",'Suvestinė nuo metų pradžios'!B9)","v":""},0,{"$f":"COUNTIF($F9:CS9, \"As\")","v":0},{"$f":"COUNTIF($F9:CS9, \"N\")","v":0}]
[{"$f":"IF(ISBLANK('Suvestinė nuo metų pradžios'!A10),\"\",'Suvestinė nuo metų pradžios'!A10)","v":""},{"$f":"IF(ISBLANK('Suvestinė nuo metų pradžios'!B10),\"\",'Suvestinė nuo metų pradžios'!B10)","v":""},0,{"$f":"COUNTIF($F10:CS10, \"As\")","v":0},{"$f":"COUNTIF($F10:CS10, \"N\")","v":0}]
[{"$f":"IF(ISBLANK('Suvestinė nuo metų pradžios'!A11),\"\",'Suvestinė nuo metų pradžios'!A11)","v":""},{"$f":"IF(ISBLANK('Suvestinė nuo metų pradžios'!B11),\"\",'Suvestinė nuo metų pradžios'!B11)","v":""},0,{"$f":"COUNTIF($F11:CS11, \"As\")","v":0},{"$f":"COUNTIF($F11:CS11, \"N\")","v":0}]
[{"$f":"IF(ISBLANK('Suvestinė nuo metų pradžios'!A12),\"\",'Suvestinė nuo metų pradžios'!A12)","v":""},{"$f":"IF(ISBLANK('Suvestinė nuo metų pradžios'!B12),\"\",'Suvestinė nuo metų pradžios'!B12)","v":""},0,{"$f":"COUNTIF($F12:CS12, \"As\")","v":0},{"$f":"COUNTIF($F12:CS12, \"N\")","v":0}]
[{"$f":"IF(ISBLANK('Suvestinė nuo metų pradžios'!A13),\"\",'Suvestinė nuo metų pradžios'!A13)","v":""},{"$f":"IF(ISBLANK('Suvestinė nuo metų pradžios'!B13),\"\",'Suvestinė nuo metų pradžios'!B13)","v":""},0,{"$f":"COUNTIF($F13:CS13, \"As\")","v":0},{"$f":"COUNTIF($F13:CS13, \"N\")","v":0}]
[{"$f":"IF(ISBLANK('Suvestinė nuo metų pradžios'!A14),\"\",'Suvestinė nuo metų pradžios'!A14)","v":""},{"$f":"IF(ISBLANK('Suvestinė nuo metų pradžios'!B14),\"\",'Suvestinė nuo metų pradžios'!B14)","v":""},0,{"$f":"COUNTIF($F14:CS14, \"As\")","v":0},{"$f":"COUNTIF($F14:CS14, \"N\")","v":0}]
[{"$f":"IF(ISBLANK('Suvestinė nuo metų pradžios'!A15),\"\",'Suvestinė nuo metų pradžios'!A15)","v":""},{"$f":"IF(ISBLANK('Suvestinė nuo metų pradžios'!B15),\"\",'Suvestinė nuo metų pradžios'!B15)","v":""},0,{"$f":"COUNTIF($F15:CS15, \"As\")","v":0},{"$f":"COUNTIF($F15:CS15, \"N\")","v":0}]
[{"$f":"IF(ISBLANK('Suvestinė nuo metų pradžios'!A16),\"\",'Suvestinė nuo metų pradžios'!A16)","v":""},{"$f":"IF(ISBLANK('Suvestinė nuo metų pradžios'!B16),\"\",'Suvestinė nuo metų pradžios'!B16)","v":""},0,{"$f":"COUNTIF($F16:CS16, \"As\")","v":0},{"$f":"COUNTIF($F16:CS16, \"N\")","v":0}]
[{"$f":"IF(ISBLANK('Suvestinė nuo metų pradžios'!A17),\"\",'Suvestinė nuo metų pradžios'!A17)","v":""},{"$f":"IF(ISBLANK('Suvestinė nuo metų pradžios'!B17),\"\",'Suvestinė nuo metų pradžios'!B17)","v":""},0,{"$f":"COUNTIF($F17:CS17, \"As\")","v":0},{"$f":"COUNTIF($F17:CS17, \"N\")","v":0}]
[{"$f":"IF(ISBLANK('Suvestinė nuo metų pradžios'!A18),\"\",'Suvestinė nuo metų pradžios'!A18)","v":""},{"$f":"IF(ISBLANK('Suvestinė nuo metų pradžios'!B18),\"\",'Suvestinė nuo metų pradžios'!B18)","v":""},0,{"$f":"COUNTIF($F18:CS18, \"As\")","v":0},{"$f":"COUNTIF($F18:CS18, \"N\")","v":0}]
[{"$f":"IF(ISBLANK('Suvestinė nuo metų pradžios'!A19),\"\",'Suvestinė nuo metų pradžios'!A19)","v":""},{"$f":"IF(ISBLANK('Suvestinė nuo metų pradžios'!B19),\"\",'Suvestinė nuo metų pradžios'!B19)","v":""},0,{"$f":"COUNTIF($F19:CS19, \"As\")","v":0},{"$f":"COUNTIF($F19:CS19, \"N\")","v":0}]
[{"$f":"IF(ISBLANK('Suvestinė nuo metų pradžios'!A20),\"\",'Suvestinė nuo metų pradžios'!A20)","v":""},{"$f":"IF(ISBLANK('Suvestinė nuo metų pradžios'!B20),\"\",'Suvestinė nuo metų pradžios'!B20)","v":""},0,{"$f":"COUNTIF($F20:CS20, \"As\")","v":0},{"$f":"COUNTIF($F20:CS20, \"N\")","v":0}]
[{"$f":"IF(ISBLANK('Suvestinė nuo metų pradžios'!A21),\"\",'Suvestinė nuo metų pradžios'!A21)","v":""},{"$f":"IF(ISBLANK('Suvestinė nuo metų pradžios'!B21),\"\",'Suvestinė nuo metų pradžios'!B21)","v":""},0,{"$f":"COUNTIF($F21:CS21, \"As\")","v":0},{"$f":"COUNTIF($F21:CS21, \"N\")","v":0}]
[{"$f":"IF(ISBLANK('Suvestinė nuo metų pradžios'!A22),\"\",'Suvestinė nuo metų pradžios'!A22)","v":""},{"$f":"IF(ISBLANK('Suvestinė nuo metų pradžios'!B22),\"\",'Suvestinė nuo metų pradžios'!B22)","v":""},0,{"$f":"COUNTIF($F22:CS22, \"As\")","v":0},{"$f":"COUNTIF($F22:CS22, \"N\")","v":0}]
[{"$f":"IF(ISBLANK('Suvestinė nuo metų pradžios'!A23),\"\",'Suvestinė nuo metų pradžios'!A23)","v":""},{"$f":"IF(ISBLANK('Suvestinė nuo metų pradžios'!B23),\"\",'Suvestinė nuo metų pradžios'!B23)","v":""},0,{"$f":"COUNTIF($F23:CS23, \"As\")","v":0},{"$f":"COUNTIF($F23:CS23, \"N\")","v":0}]
[{"$f":"IF(ISBLANK('Suvestinė nuo metų pradžios'!A24),\"\",'Suvestinė nuo metų pradžios'!A24)","v":""},{"$f":"IF(ISBLANK('Suvestinė nuo metų pradžios'!B24),\"\",'Suvestinė nuo metų pradžios'!B24)","v":""},0,{"$f":"COUNTIF($F24:CS24, \"As\")","v":0},{"$f":"COUNTIF($F24:CS24, \"N\")","v":0}]
[{"$f":"IF(ISBLANK('Suvestinė nuo metų pradžios'!A25),\"\",'Suvestinė nuo metų pradžios'!A25)","v":""},{"$f":"IF(ISBLANK('Suvestinė nuo metų pradžios'!B25),\"\",'Suvestinė nuo metų pradžios'!B25)","v":""},0,{"$f":"COUNTIF($F25:CS25, \"As\")","v":0},{"$f":"COUNTIF($F25:CS25, \"N\")","v":0}]
[{"$f":"IF(ISBLANK('Suvestinė nuo metų pradžios'!A26),\"\",'Suvestinė nuo metų pradžios'!A26)","v":""},{"$f":"IF(ISBLANK('Suvestinė nuo metų pradžios'!B26),\"\",'Suvestinė nuo metų pradžios'!B26)","v":""},0,{"$f":"COUNTIF($F26:CS26, \"As\")","v":0},{"$f":"COUNTIF($F26:CS26, \"N\")","v":0}]
[{"$f":"IF(ISBLANK('Suvestinė nuo metų pradžios'!A27),\"\",'Suvestinė nuo metų pradžios'!A27)","v":""},{"$f":"IF(ISBLANK('Suvestinė nuo metų pradžios'!B27),\"\",'Suvestinė nuo metų pradžios'!B27)","v":""},0,{"$f":"COUNTIF($F27:CS27, \"As\")","v":0},{"$f":"COUNTIF($F27:CS27, \"N\")","v":0}]
[{"$f":"IF(ISBLANK('Suvestinė nuo metų pradžios'!A28),\"\",'Suvestinė nuo metų pradžios'!A28)","v":""},{"$f":"IF(ISBLANK('Suvestinė nuo metų pradžios'!B28),\"\",'Suvestinė nuo metų pradžios'!B28)","v":""},0,{"$f":"COUNTIF($F28:CS28, \"As\")","v":0},{"$f":"COUNTIF($F28:CS28, \"N\")","v":0}]
[{"$f":"IF(ISBLANK('Suvestinė nuo metų pradžios'!A29),\"\",'Suvestinė nuo metų pradžios'!A29)","v":""},{"$f":"IF(ISBLANK('Suvestinė nuo metų pradžios'!B29),\"\",'Suvestinė nuo metų pradžios'!B29)","v":""},0,{"$f":"COUNTIF($F29:CS29, \"As\")","v":0},{"$f":"COUNTIF($F29:CS29, \"N\")","v":0}]
[{"$f":"IF(ISBLANK('Suvestinė nuo metų pradžios'!A30),\"\",'Suvestinė nuo metų pradžios'!A30)","v":""},{"$f":"IF(ISBLANK('Suvestinė nuo metų pradžios'!B30),\"\",'Suvestinė nuo metų pradžios'!B30)","v":""},0,{"$f":"COUNTIF($F30:CS30, \"As\")","v":0},{"$f":"COUNTIF($F30:CS30, \"N\")","v":0}]
[{"$f":"IF(ISBLANK('Suvestinė nuo metų pradžios'!A31),\"\",'Suvestinė nuo metų pradžios'!A31)","v":""},{"$f":"IF(ISBLANK('Suvestinė nuo metų pradžios'!B31),\"\",'Suvestinė nuo metų pradžios'!B31)","v":""},0,{"$f":"COUNTIF($F31:CS31, \"As\")","v":0},{"$f":"COUNTIF($F31:CS31, \"N\")","v":0}]
[{"$f":"IF(ISBLANK('Suvestinė nuo metų pradžios'!A32),\"\",'Suvestinė nuo metų pradžios'!A32)","v":""},{"$f":"IF(ISBLANK('Suvestinė nuo metų pradžios'!B32),\"\",'Suvestinė nuo metų pradžios'!B32)","v":""},0,{"$f":"COUNTIF($F32:CS32, \"As\")","v":0},{"$f":"COUNTIF($F32:CS32, \"N\")","v":0}]
[{"$f":"IF(ISBLANK('Suvestinė nuo metų pradžios'!A33),\"\",'Suvestinė nuo metų pradžios'!A33)","v":""},{"$f":"IF(ISBLANK('Suvestinė nuo metų pradžios'!B33),\"\",'Suvestinė nuo metų pradžios'!B33)","v":""},0,{"$f":"COUNTIF($F33:CS33, \"As\")","v":0},{"$f":"COUNTIF($F33:CS33, \"N\")","v":0}]
[{"$f":"IF(ISBLANK('Suvestinė nuo metų pradžios'!A34),\"\",'Suvestinė nuo metų pradžios'!A34)","v":""},{"$f":"IF(ISBLANK('Suvestinė nuo metų pradžios'!B34),\"\",'Suvestinė nuo metų pradžios'!B34)","v":""},0,{"$f":"COUNTIF($F34:CS34, \"As\")","v":0},{"$f":"COUNTIF($F34:CS34, \"N\")","v":0}]
[{"$f":"IF(ISBLANK('Suvestinė nuo metų pradžios'!A35),\"\",'Suvestinė nuo metų pradžios'!A35)","v":""},{"$f":"IF(ISBLANK('Suvestinė nuo metų pradžios'!B35),\"\",'Suvestinė nuo metų pradžios'!B35)","v":""},0,{"$f":"COUNTIF($F35:CS35, \"As\")","v":0},{"$f":"COUNTIF($F35:CS35, \"N\")","v":0}]
[{"$f":"IF(ISBLANK('Suvestinė nuo metų pradžios'!A36),\"\",'Suvestinė nuo metų pradžios'!A36)","v":""},{"$f":"IF(ISBLANK('Suvestinė nuo metų pradžios'!B36),\"\",'Suvestinė nuo metų pradžios'!B36)","v":""},0,{"$f":"COUNTIF($F36:CS36, \"As\")","v":0},{"$f":"COUNTIF($F36:CS36, \"N\")","v":0}]